[Event "Early-Titled-Tuesday-Blitz-July-09-2024"]
[Site "Chess.com"]
[Date "2024.07.09"]
[Round "2"]
[White "DontMessWithTheFish"]
[Black "praveenb2002"]
[Result "1-0"]
[WhiteElo "2603"]
[BlackElo "2843"]
[TimeControl "180+1"]
[EndTime "8:18:30 PDT"]
[Termination "DontMessWithTheFish won by resignation"]

1. e4 {[%clk 0:03:00.9]} 1... c6 {[%clk 0:02:48.2]} 2. d4 {[%clk 0:02:56.8]}
2... d5 {[%clk 0:02:46.1]} 3. Nc3 {[%clk 0:02:56.8]} 3... dxe4 {[%clk
0:02:41.1]} 4. Nxe4 {[%clk 0:02:57.5]} 4... Nf6 {[%clk 0:02:41.8]} 5. Nxf6+
{[%clk 0:02:56.7]} 5... exf6 {[%clk 0:02:42.5]} 6. c3 {[%clk 0:02:55.8]} 6...
Bd6 {[%clk 0:02:41.5]} 7. Bd3 {[%clk 0:02:54.5]} 7... O-O {[%clk 0:02:41.7]} 8.
Ne2 {[%clk 0:02:53.6]} 8... Re8 {[%clk 0:02:42.4]} 9. O-O {[%clk 0:02:53.2]}
9... Nd7 {[%clk 0:02:37.9]} 10. Ng3 {[%clk 0:02:47.8]} 10... Nf8 {[%clk
0:02:32.5]} 11. Be3 {[%clk 0:02:46.5]} 11... Qc7 {[%clk 0:02:27.7]} 12. Qd2
{[%clk 0:02:44.7]} 12... Be6 {[%clk 0:02:27.7]} 13. Rfe1 {[%clk 0:02:43]} 13...
Rad8 {[%clk 0:02:27.6]} 14. a4 {[%clk 0:02:41.8]} 14... Ng6 {[%clk 0:02:18.3]}
15. Qc2 {[%clk 0:02:39.9]} 15... a5 {[%clk 0:02:12.1]} 16. Rad1 {[%clk
0:02:24.6]} 16... Bg4 {[%clk 0:02:06.9]} 17. Rc1 {[%clk 0:02:23.3]} 17... Kh8
{[%clk 0:01:58.9]} 18. Bc4 {[%clk 0:02:14.4]} 18... Nf4 {[%clk 0:01:53.4]} 19.
Qb3 {[%clk 0:02:02.6]} 19... Kg8 {[%clk 0:01:43.8]} 20. Bd2 {[%clk 0:01:59.2]}
20... Rxe1+ {[%clk 0:01:24.2]} 21. Rxe1 {[%clk 0:02:00.1]} 21... h5 {[%clk
0:01:22.3]} 22. Ne4 {[%clk 0:01:54.2]} 22... Ne6 {[%clk 0:01:00.7]} 23. Nxd6
{[%clk 0:01:40.6]} 23... Rxd6 {[%clk 0:00:58.1]} 24. Qc2 {[%clk 0:01:35.2]}
24... g6 {[%clk 0:00:48.8]} 25. Bd3 {[%clk 0:01:33.2]} 25... Ng7 {[%clk
0:00:45.7]} 26. Bf4 {[%clk 0:01:30.1]} 26... Re6 {[%clk 0:00:37.3]} 27. Rxe6
{[%clk 0:01:27.2]} 27... Qxf4 {[%clk 0:00:37.9]} 28. Re1 {[%clk 0:01:24]} 28...
Bf5 {[%clk 0:00:35.1]} 29. Bxf5 {[%clk 0:01:17.4]} 29... Nxf5 {[%clk 0:00:36]}
30. Qe4 {[%clk 0:01:09.5]} 30... Qd2 {[%clk 0:00:35.7]} 31. Qe2 {[%clk
0:01:10.1]} 31... Qf4 {[%clk 0:00:34]} 32. g3 {[%clk 0:01:10.1]} 32... Qg5
{[%clk 0:00:31.9]} 33. Kg2 {[%clk 0:00:48.6]} 33... h4 {[%clk 0:00:30]} 34. f4
{[%clk 0:00:41]} 34... Qh6 {[%clk 0:00:27.8]} 35. Qg4 {[%clk 0:00:34.3]} 35...
Kg7 {[%clk 0:00:19.9]} 36. Re8 {[%clk 0:00:32.3]} 36... b5 {[%clk 0:00:15.5]}
37. axb5 {[%clk 0:00:28.9]} 37... cxb5 {[%clk 0:00:16.4]} 38. d5 {[%clk
0:00:27.2]} 38... b4 {[%clk 0:00:15.2]} 39. cxb4 {[%clk 0:00:26.1]} 39... axb4
{[%clk 0:00:16.1]} 40. Kg1 {[%clk 0:00:18.5]} 40... Nd6 {[%clk 0:00:12.9]} 41.
Rd8 {[%clk 0:00:17]} 41... Nb7 {[%clk 0:00:12.2]} 42. Rd7 {[%clk 0:00:09]} 42...
Nc5 {[%clk 0:00:12]} 43. Rc7 {[%clk 0:00:09.1]} 43... hxg3 {[%clk 0:00:09.1]}
44. hxg3 {[%clk 0:00:08.4]} 44... f5 {[%clk 0:00:05.1]} 45. Qh4 {[%clk
0:00:06.9]} 45... Qxh4 {[%clk 0:00:04.3]} 46. gxh4 {[%clk 0:00:07.8]} 46... Ne4
{[%clk 0:00:04.8]} 47. Rc6 {[%clk 0:00:02.7]} 47... Kf8 {[%clk 0:00:04.5]} 48.
Rb6 {[%clk 0:00:01.4]} 48... Ke7 {[%clk 0:00:04.4]} 49. Rxb4 {[%clk 0:00:01.1]}
49... Kd6 {[%clk 0:00:05.1]} 50. Rb7 {[%clk 0:00:01.7]} 50... Kxd5 {[%clk
0:00:05.7]} 51. Rxf7 {[%clk 0:00:02.2]} 51... Kd4 {[%clk 0:00:05.9]} 52. Rg7
{[%clk 0:00:02.7]} 52... Ke3 {[%clk 0:00:05.8]} 53. Rxg6 {[%clk 0:00:03.3]}
53... Kxf4 {[%clk 0:00:06.5]} 54. h5 {[%clk 0:00:03.9]} 54... Ng5 {[%clk
0:00:03.3]} 55. h6 {[%clk 0:00:04.1]} 55... Nh7 {[%clk 0:00:01.3]} 56. Rg7
{[%clk 0:00:04]} 56... Nf6 {[%clk 0:00:02.2]} 57. h7 {[%clk 0:00:04.5]} 57...
Nxh7 {[%clk 0:00:02.3]} 58. Rxh7 {[%clk 0:00:05.4]} 1-0

[Event "Early-Titled-Tuesday-Blitz-July-09-2024"]
[Site "Chess.com"]
[Date "2024.07.09"]
[Round "2"]
[White "komogro"]
[Black "AndresDelgado77"]
[Result "1/2-1/2"]
[WhiteElo "2527"]
[BlackElo "2340"]
[TimeControl "180+1"]
[EndTime "8:18:30 PDT"]
[Termination "Game drawn by repetition"]

1. e4 {[%clk 0:02:59.2]} 1... e6 {[%clk 0:02:59.3]} 2. d4 {[%clk 0:02:59]} 2...
d5 {[%clk 0:02:57.5]} 3. exd5 {[%clk 0:02:58]} 3... exd5 {[%clk 0:02:55.5]} 4.
Bd3 {[%clk 0:02:57.9]} 4... Nc6 {[%clk 0:02:55.4]} 5. c3 {[%clk 0:02:58]} 5...
Bd6 {[%clk 0:02:54.6]} 6. Ne2 {[%clk 0:02:57.6]} 6... Qh4 {[%clk 0:02:51.7]} 7.
Be3 {[%clk 0:02:53.5]} 7... Nf6 {[%clk 0:02:50.5]} 8. Nd2 {[%clk 0:02:53.7]}
8... Ng4 {[%clk 0:02:48.9]} 9. Nf3 {[%clk 0:02:49.1]} 9... Nxe3 {[%clk
0:02:45.5]} 10. Nxh4 {[%clk 0:02:49]} 10... Nxd1 {[%clk 0:02:43.3]} 11. Rxd1
{[%clk 0:02:49.2]} 11... Ne7 {[%clk 0:02:38.8]} 12. O-O {[%clk 0:02:46.9]} 12...
O-O {[%clk 0:02:33.6]} 13. Ng3 {[%clk 0:02:46.8]} 13... g6 {[%clk 0:02:29.3]}
14. Rfe1 {[%clk 0:02:46.8]} 14... Bg4 {[%clk 0:02:22.6]} 15. Be2 {[%clk
0:02:41.7]} 15... Be6 {[%clk 0:02:14.2]} 16. Nf3 {[%clk 0:02:40.3]} 16... f6
{[%clk 0:02:11.7]} 17. Bd3 {[%clk 0:02:30.1]} 17... Bg4 {[%clk 0:01:36.7]} 18.
Be2 {[%clk 0:02:25.6]} 18... Rae8 {[%clk 0:01:30.9]} 19. h3 {[%clk 0:02:23.8]}
19... Bxf3 {[%clk 0:01:29.1]} 20. Bxf3 {[%clk 0:02:24.7]} 20... Bxg3 {[%clk
0:01:29]} 21. fxg3 {[%clk 0:02:25.4]} 21... c6 {[%clk 0:01:29.9]} 22. Re6 {[%clk
0:02:22]} 22... Nf5 {[%clk 0:00:57.9]} 23. Rxe8 {[%clk 0:02:10]} 23... Rxe8
{[%clk 0:00:57.5]} 24. Kf2 {[%clk 0:02:10]} 24... Kf7 {[%clk 0:00:57.8]} 25. Bg4
{[%clk 0:02:04.8]} 25... Ne3 {[%clk 0:00:55.1]} 26. Rh1 {[%clk 0:01:56.9]} 26...
Nxg4+ {[%clk 0:00:51.6]} 27. hxg4 {[%clk 0:01:57.8]} 27... Kg7 {[%clk
0:00:52.1]} 28. a4 {[%clk 0:01:54.6]} 28... b6 {[%clk 0:00:27.2]} 29. a5 {[%clk
0:01:49]} 29... bxa5 {[%clk 0:00:22.3]} 30. Ra1 {[%clk 0:01:48.4]} 30... Rb8
{[%clk 0:00:22.4]} 31. Rxa5 {[%clk 0:01:44.3]} 31... Rxb2+ {[%clk 0:00:21.7]}
32. Kf3 {[%clk 0:01:42]} 32... Rb3 {[%clk 0:00:20.2]} 33. Rc5 {[%clk 0:01:41]}
33... Rb6 {[%clk 0:00:18.9]} 34. Ra5 {[%clk 0:01:40.7]} 34... a6 {[%clk
0:00:18.7]} 35. Ke3 {[%clk 0:01:40.4]} 35... Kh6 {[%clk 0:00:18.4]} 36. Rc5
{[%clk 0:01:33.9]} 36... Kg5 {[%clk 0:00:17.8]} 37. Kf3 {[%clk 0:01:34.2]} 37...
Kh6 {[%clk 0:00:15.3]} 38. Kf4 {[%clk 0:01:32.9]} 38... Kg7 {[%clk 0:00:15.1]}
39. g5 {[%clk 0:01:31.2]} 39... fxg5+ {[%clk 0:00:12.2]} 40. Kxg5 {[%clk
0:01:32.1]} 40... h6+ {[%clk 0:00:12.5]} 41. Kf4 {[%clk 0:01:32.1]} 41... Kf6
{[%clk 0:00:12.9]} 42. g4 {[%clk 0:01:30.6]} 42... g5+ {[%clk 0:00:12.8]} 43.
Ke3 {[%clk 0:01:27.8]} 43... Ke6 {[%clk 0:00:13.1]} 44. Ra5 {[%clk 0:01:24.3]}
44... Kd6 {[%clk 0:00:12.6]} 45. g3 {[%clk 0:01:18.8]} 45... Kc7 {[%clk
0:00:12.1]} 46. Ra1 {[%clk 0:01:16.6]} 46... Rb3 {[%clk 0:00:11.3]} 47. Kd3
{[%clk 0:01:15.5]} 47... Kb6 {[%clk 0:00:09.6]} 48. Kc2 {[%clk 0:01:12.6]} 48...
Rb5 {[%clk 0:00:07.8]} 49. Rh1 {[%clk 0:01:12.5]} 49... a5 {[%clk 0:00:06.5]}
50. Rxh6 {[%clk 0:01:12.5]} 50... a4 {[%clk 0:00:06.8]} 51. Rh8 {[%clk
0:01:03.3]} 51... a3 {[%clk 0:00:05]} 52. Rb8+ {[%clk 0:00:51.5]} 52... Kc7
{[%clk 0:00:04.8]} 53. Rxb5 {[%clk 0:00:50]} 53... cxb5 {[%clk 0:00:04.9]} 54.
Kb3 {[%clk 0:00:50.5]} 54... Kb6 {[%clk 0:00:03.1]} 55. Kxa3 {[%clk 0:00:50.7]}
55... Ka5 {[%clk 0:00:03.5]} 56. Kb3 {[%clk 0:00:45.5]} 56... Ka6 {[%clk
0:00:03.8]} 57. Ka3 {[%clk 0:00:45]} 57... Ka5 {[%clk 0:00:03.9]} 58. Kb2 {[%clk
0:00:45.7]} 58... Ka6 {[%clk 0:00:03.6]} 59. Kb3 {[%clk 0:00:43.9]} 59... Ka5
{[%clk 0:00:04]} 60. Ka3 {[%clk 0:00:44]} 60... Ka6 {[%clk 0:00:04.2]} 61. Kb2
{[%clk 0:00:36]} 61... Ka5 {[%clk 0:00:04.5]} 62. Ka3 {[%clk 0:00:33.4]} 62...
Ka6 {[%clk 0:00:04.6]} 63. Kb3 {[%clk 0:00:30.9]} 63... Ka5 {[%clk 0:00:04.8]}
64. Ka3 {[%clk 0:00:28.3]} 1/2-1/2

[Event "Early-Titled-Tuesday-Blitz-July-09-2024"]
[Site "Chess.com"]
[Date "2024.07.09"]
[Round "2"]
[White "Hongjin"]
[Black "klimkoj"]
[Result "0-1"]
[WhiteElo "2599"]
[BlackElo "2879"]
[TimeControl "180+1"]
[EndTime "8:18:32 PDT"]
[Termination "klimkoj won by resignation"]

1. e4 {[%clk 0:03:00.9]} 1... c5 {[%clk 0:02:58.3]} 2. Be2 {[%clk 0:03:00.4]}
2... Nc6 {[%clk 0:02:53.5]} 3. f4 {[%clk 0:03:00.6]} 3... e6 {[%clk 0:02:52.3]}
4. Nf3 {[%clk 0:03:00.8]} 4... d5 {[%clk 0:02:52.7]} 5. d3 {[%clk 0:03:01.2]}
5... Bd6 {[%clk 0:02:47.5]} 6. O-O {[%clk 0:03:01.1]} 6... Nge7 {[%clk
0:02:47.8]} 7. Qe1 {[%clk 0:03:01.4]} 7... O-O {[%clk 0:02:47.5]} 8. Qh4 {[%clk
0:03:01.4]} 8... f5 {[%clk 0:02:43.9]} 9. e5 {[%clk 0:02:58.7]} 9... Bc7 {[%clk
0:02:43.9]} 10. a4 {[%clk 0:02:59.1]} 10... d4 {[%clk 0:02:34.4]} 11. Na3 {[%clk
0:02:57.5]} 11... Nb4 {[%clk 0:02:34]} 12. Bd1 {[%clk 0:02:46]} 12... Nbd5
{[%clk 0:02:31.8]} 13. Nc4 {[%clk 0:02:43.2]} 13... b6 {[%clk 0:02:26.7]} 14.
Bd2 {[%clk 0:02:37.7]} 14... Rb8 {[%clk 0:02:25.1]} 15. b3 {[%clk 0:02:32.5]}
15... Ng6 {[%clk 0:02:16.4]} 16. Qg3 {[%clk 0:02:32.3]} 16... a6 {[%clk
0:02:13.7]} 17. h4 {[%clk 0:02:28.8]} 17... b5 {[%clk 0:02:11.2]} 18. axb5
{[%clk 0:02:23.8]} 18... axb5 {[%clk 0:02:11.6]} 19. Nb2 {[%clk 0:02:18.4]}
19... Nge7 {[%clk 0:02:01.9]} 20. Be2 {[%clk 0:02:14]} 20... Bd7 {[%clk
0:02:00.1]} 21. Nd1 {[%clk 0:02:12.2]} 21... Be8 {[%clk 0:01:56.9]} 22. Ng5
{[%clk 0:02:09.1]} 22... Qd7 {[%clk 0:01:55.8]} 23. Nf2 {[%clk 0:02:03.8]} 23...
h6 {[%clk 0:01:55.3]} 24. Nf3 {[%clk 0:02:02.4]} 24... Bh5 {[%clk 0:01:53.2]}
25. Nxd4 {[%clk 0:02:02.8]} 25... cxd4 {[%clk 0:01:43.9]} 26. Bxh5 {[%clk
0:02:02.8]} 26... Qc6 {[%clk 0:01:42.8]} 27. Bd1 {[%clk 0:02:00]} 27... Bb6
{[%clk 0:01:36]} 28. Qf3 {[%clk 0:01:55]} 28... Qc5 {[%clk 0:01:27]} 29. Nh1
{[%clk 0:01:43.4]} 29... Ne3 {[%clk 0:01:25.4]} 30. Bxe3 {[%clk 0:01:40.3]}
30... dxe3 {[%clk 0:01:26.3]} 31. Kh2 {[%clk 0:01:37.2]} 31... Nd5 {[%clk
0:01:22.9]} 32. Ng3 {[%clk 0:01:34.4]} 32... Ra8 {[%clk 0:01:08.2]} 33. Rxa8
{[%clk 0:01:32.1]} 33... Rxa8 {[%clk 0:01:09.1]} 34. c4 {[%clk 0:01:32]} 34...
Nc7 {[%clk 0:01:06.6]} 35. Ne2 {[%clk 0:01:23.1]} 35... bxc4 {[%clk 0:00:54.2]}
36. bxc4 {[%clk 0:01:24]} 36... Ra2 {[%clk 0:00:47.3]} 37. Qb7 {[%clk
0:01:18.5]} 37... Rb2 {[%clk 0:00:39.6]} 38. Rf3 {[%clk 0:01:07.6]} 38... Kh7
{[%clk 0:00:34.7]} 39. Rg3 {[%clk 0:01:05.1]} 39... Qe7 {[%clk 0:00:21.9]} 40.
Rh3 {[%clk 0:00:53.5]} 40... Bd4 {[%clk 0:00:11.4]} 41. Qf3 {[%clk 0:00:51.5]}
41... Ba7 {[%clk 0:00:11.1]} 42. d4 {[%clk 0:00:50.7]} 42... Rd2 {[%clk
0:00:10.6]} 43. Bb3 {[%clk 0:00:42.2]} 43... Bxd4 {[%clk 0:00:09.9]} 44. Nxd4
{[%clk 0:00:42.4]} 44... Rxd4 {[%clk 0:00:10.8]} 45. Qxe3 {[%clk 0:00:43.1]}
45... Re4 {[%clk 0:00:11.5]} 46. Qf3 {[%clk 0:00:41.2]} 46... Qb4 {[%clk
0:00:10.5]} 47. h5 {[%clk 0:00:34.6]} 47... Qd2 {[%clk 0:00:09.7]} 48. c5 {[%clk
0:00:31.5]} 48... Rxf4 {[%clk 0:00:08.4]} 49. Qd3 {[%clk 0:00:28.1]} 49... Qf2
{[%clk 0:00:06.9]} 50. Bd1 {[%clk 0:00:21.5]} 50... Qxc5 {[%clk 0:00:06.3]} 51.
Qd7 {[%clk 0:00:19.4]} 51... Qxe5 {[%clk 0:00:05.4]} 52. Qf7 {[%clk 0:00:07.8]}
52... Rf1+ {[%clk 0:00:04.9]} 53. Rg3 {[%clk 0:00:08]} 53... Rxd1 {[%clk
0:00:03.9]} 54. Qg6+ {[%clk 0:00:06.6]} 54... Kg8 {[%clk 0:00:04]} 55. Qxh6
{[%clk 0:00:01.7]} 55... Qxg3+ {[%clk 0:00:04]} 56. Kxg3 {[%clk 0:00:02.6]}
56... gxh6 {[%clk 0:00:04.9]} 57. Kh4 {[%clk 0:00:03.5]} 57... Rd4+ {[%clk
0:00:04.6]} 58. g4 {[%clk 0:00:04.1]} 58... Rxg4+ {[%clk 0:00:05.5]} 59. Kh3
{[%clk 0:00:05]} 59... Rg5 {[%clk 0:00:05.7]} 0-1

[Event "Early-Titled-Tuesday-Blitz-July-09-2024"]
[Site "Chess.com"]
[Date "2024.07.09"]
[Round "2"]
[White "AA95"]
[Black "suspiciumchess"]
[Result "0-1"]
[WhiteElo "2522"]
[BlackElo "2378"]
[TimeControl "180+1"]
[EndTime "8:18:32 PDT"]
[Termination "suspiciumchess won by resignation"]

1. Nf3 {[%clk 0:03:00.9]} 1... Nf6 {[%clk 0:02:59.9]} 2. g3 {[%clk 0:03:01.2]}
2... g6 {[%clk 0:03:00.2]} 3. Bg2 {[%clk 0:03:01.5]} 3... Bg7 {[%clk 0:03:01.1]}
4. O-O {[%clk 0:03:01.8]} 4... O-O {[%clk 0:03:02]} 5. d4 {[%clk 0:03:02]} 5...
d5 {[%clk 0:03:02]} 6. c4 {[%clk 0:03:01.8]} 6... c6 {[%clk 0:03:02.6]} 7. cxd5
{[%clk 0:03:00.7]} 7... cxd5 {[%clk 0:03:03.5]} 8. Nc3 {[%clk 0:03:01.1]} 8...
Nc6 {[%clk 0:03:03.4]} 9. Ne5 {[%clk 0:03:00.8]} 9... Qb6 {[%clk 0:02:49.5]} 10.
Nxc6 {[%clk 0:02:56.7]} 10... bxc6 {[%clk 0:02:48.1]} 11. Na4 {[%clk 0:02:55.5]}
11... Qb5 {[%clk 0:02:42]} 12. Re1 {[%clk 0:02:52]} 12... Bf5 {[%clk 0:02:41.4]}
13. Bf1 {[%clk 0:02:49.1]} 13... Qb4 {[%clk 0:02:23.1]} 14. a3 {[%clk
0:02:31.1]} 14... Qa5 {[%clk 0:02:22]} 15. Bd2 {[%clk 0:02:30.1]} 15... Qc7
{[%clk 0:02:21.5]} 16. Bf4 {[%clk 0:02:25.6]} 16... Qd8 {[%clk 0:02:06.9]} 17.
Rc1 {[%clk 0:02:25.5]} 17... Rc8 {[%clk 0:02:03.6]} 18. Nc5 {[%clk 0:01:30.2]}
18... Qb6 {[%clk 0:01:57.3]} 19. b4 {[%clk 0:01:24.1]} 19... a5 {[%clk
0:01:54.1]} 20. Qa4 {[%clk 0:00:58]} 20... axb4 {[%clk 0:01:52.9]} 21. axb4
{[%clk 0:00:58.9]} 21... Ra8 {[%clk 0:01:50.7]} 22. Qb3 {[%clk 0:00:58.3]} 22...
Ne4 {[%clk 0:01:45.6]} 23. e3 {[%clk 0:00:56.4]} 23... Nd2 {[%clk 0:01:43.3]}
24. Qc3 {[%clk 0:00:49.1]} 24... Nxf1 {[%clk 0:01:41.7]} 25. Rxf1 {[%clk
0:00:48.3]} 25... f6 {[%clk 0:01:28.5]} 26. f3 {[%clk 0:00:34.2]} 26... g5
{[%clk 0:01:22.8]} 27. e4 {[%clk 0:00:34.4]} 27... Bh3 {[%clk 0:01:23.1]} 28.
Be3 {[%clk 0:00:27]} 28... Bxf1 {[%clk 0:01:22.8]} 29. Kxf1 {[%clk 0:00:17.3]}
29... Qb5+ {[%clk 0:01:20.6]} 30. Kg1 {[%clk 0:00:15.9]} 30... Ra2 {[%clk
0:01:20.5]} 31. Nd3 {[%clk 0:00:09]} 31... Rfa8 {[%clk 0:01:16.3]} 32. exd5
{[%clk 0:00:05.2]} 32... cxd5 {[%clk 0:01:14.7]} 33. Rd1 {[%clk 0:00:03.3]}
33... Kf7 {[%clk 0:01:04.7]} 34. Qc5 {[%clk 0:00:03.1]} 34... Qxc5 {[%clk
0:01:01.5]} 35. bxc5 {[%clk 0:00:03.3]} 35... h6 {[%clk 0:00:56.2]} 36. Nb4
{[%clk 0:00:03.1]} 36... Rb2 {[%clk 0:00:52.8]} 37. Nxd5 {[%clk 0:00:03]} 37...
e6 {[%clk 0:00:44.2]} 38. Nb6 {[%clk 0:00:03.1]} 38... Raa2 {[%clk 0:00:43.4]}
39. Kf1 {[%clk 0:00:03.5]} 39... Rxh2 {[%clk 0:00:20.9]} 40. Bg1 {[%clk
0:00:03.7]} 40... Rhc2 {[%clk 0:00:19.2]} 41. Rb1 {[%clk 0:00:03.9]} 41... Rab2
{[%clk 0:00:15.8]} 42. Rd1 {[%clk 0:00:03.3]} 42... f5 {[%clk 0:00:14]} 43. Nc8
{[%clk 0:00:03.1]} 43... Kg6 {[%clk 0:00:12.9]} 44. Nd6 {[%clk 0:00:03.6]} 44...
Rd2 {[%clk 0:00:11.8]} 45. Rxd2 {[%clk 0:00:04.1]} 45... Rxd2 {[%clk 0:00:12.6]}
46. Nb5 {[%clk 0:00:04.3]} 46... Rc2 {[%clk 0:00:09]} 47. Nc7 {[%clk 0:00:03.8]}
47... Kf7 {[%clk 0:00:06.9]} 48. Nb5 {[%clk 0:00:04]} 48... h5 {[%clk
0:00:06.7]} 49. Nd6+ {[%clk 0:00:03.9]} 49... Kg6 {[%clk 0:00:07.4]} 50. Nc8
{[%clk 0:00:04.1]} 50... Rc1+ {[%clk 0:00:04.4]} 51. Kg2 {[%clk 0:00:03.9]}
51... Rxg1+ {[%clk 0:00:05.3]} 52. Kxg1 {[%clk 0:00:03.8]} 52... Bxd4+ {[%clk
0:00:06]} 53. Kg2 {[%clk 0:00:04.3]} 53... Bxc5 {[%clk 0:00:06.9]} 54. Kf1
{[%clk 0:00:03.6]} 54... g4 {[%clk 0:00:06.9]} 55. fxg4 {[%clk 0:00:03.7]} 55...
hxg4 {[%clk 0:00:07.8]} 56. Ke2 {[%clk 0:00:04.2]} 56... e5 {[%clk 0:00:08.1]}
57. Kd3 {[%clk 0:00:03.9]} 57... f4 {[%clk 0:00:08.7]} 58. Kc4 {[%clk
0:00:04.1]} 58... fxg3 {[%clk 0:00:07.6]} 59. Kxc5 {[%clk 0:00:04.6]} 59... g2
{[%clk 0:00:08.2]} 60. Ne7+ {[%clk 0:00:04.5]} 60... Kg5 {[%clk 0:00:08.8]} 61.
Nc6 {[%clk 0:00:04.2]} 61... g1=Q+ {[%clk 0:00:09.7]} 62. Kd5 {[%clk 0:00:04.7]}
62... Qe3 {[%clk 0:00:09.7]} 63. Nxe5 {[%clk 0:00:03.8]} 63... Qxe5+ {[%clk
0:00:09.7]} 64. Kxe5 {[%clk 0:00:04.7]} 64... g3 {[%clk 0:00:10.6]} 0-1

[Event "Early-Titled-Tuesday-Blitz-July-09-2024"]
[Site "Chess.com"]
[Date "2024.07.09"]
[Round "2"]
[White "CM_rui"]
[Black "NikFil2013"]
[Result "1/2-1/2"]
[WhiteElo "2588"]
[BlackElo "2381"]
[TimeControl "180+1"]
[EndTime "8:18:34 PDT"]
[Termination "Game drawn by repetition"]

1. e4 {[%clk 0:02:50.5]} 1... c5 {[%clk 0:02:59.7]} 2. Nf3 {[%clk 0:02:49.7]}
2... d6 {[%clk 0:02:59.9]} 3. d4 {[%clk 0:02:47.4]} 3... cxd4 {[%clk 0:03:00.8]}
4. Nxd4 {[%clk 0:02:48.1]} 4... Nf6 {[%clk 0:03:01.3]} 5. f3 {[%clk 0:02:48.7]}
5... a6 {[%clk 0:03:01]} 6. c4 {[%clk 0:02:49]} 6... Nc6 {[%clk 0:02:59.1]} 7.
Nc3 {[%clk 0:02:49.1]} 7... e6 {[%clk 0:02:58.2]} 8. Be3 {[%clk 0:02:49.4]} 8...
Be7 {[%clk 0:02:57.6]} 9. Be2 {[%clk 0:02:50]} 9... O-O {[%clk 0:02:56.9]} 10.
O-O {[%clk 0:02:50.5]} 10... Bd7 {[%clk 0:02:56.3]} 11. Rc1 {[%clk 0:02:50.9]}
11... Rc8 {[%clk 0:02:55.1]} 12. Qd2 {[%clk 0:02:49.7]} 12... Qc7 {[%clk
0:02:48.3]} 13. Rfd1 {[%clk 0:02:48.8]} 13... Rfd8 {[%clk 0:02:45.1]} 14. b3
{[%clk 0:02:43.3]} 14... Be8 {[%clk 0:02:44.6]} 15. Bf1 {[%clk 0:02:39.9]} 15...
Qb8 {[%clk 0:02:39]} 16. Qf2 {[%clk 0:02:31.9]} 16... d5 {[%clk 0:02:34.6]} 17.
cxd5 {[%clk 0:02:31.3]} 17... exd5 {[%clk 0:02:34.4]} 18. exd5 {[%clk
0:02:21.3]} 18... Nxd5 {[%clk 0:02:33.4]} 19. Nxd5 {[%clk 0:02:15.7]} 19... Rxd5
{[%clk 0:02:34.3]} 20. Bc4 {[%clk 0:02:07.1]} 20... Rdd8 {[%clk 0:02:13.2]} 21.
Nf5 {[%clk 0:01:54.8]} 21... Bf8 {[%clk 0:02:08.7]} 22. Qh4 {[%clk 0:01:35.1]}
22... Qe5 {[%clk 0:02:01]} 23. Qg4 {[%clk 0:01:22.3]} 23... Kh8 {[%clk
0:01:34.7]} 24. Bf4 {[%clk 0:01:03.1]} 24... Qc5+ {[%clk 0:01:23.1]} 25. Kh1
{[%clk 0:01:02.3]} 25... Ne5 {[%clk 0:01:15.3]} 26. Bxe5 {[%clk 0:00:40.3]}
26... Qxe5 {[%clk 0:01:16.2]} 27. Re1 {[%clk 0:00:40.3]} 27... Qf6 {[%clk
0:01:10.8]} 28. Ng3 {[%clk 0:00:29.6]} 28... Bb4 {[%clk 0:00:51.5]} 29. Red1
{[%clk 0:00:19.5]} 29... b5 {[%clk 0:00:48.4]} 30. Bxb5 {[%clk 0:00:06.3]} 30...
Rxc1 {[%clk 0:00:46.1]} 31. Rxc1 {[%clk 0:00:06]} 31... Bxb5 {[%clk 0:00:42.2]}
32. Qxb4 {[%clk 0:00:06.1]} 32... Qb2 {[%clk 0:00:33.7]} 33. Qc5 {[%clk
0:00:02.7]} 33... Qxa2 {[%clk 0:00:25.4]} 34. b4 {[%clk 0:00:03.1]} 34... h6
{[%clk 0:00:20.3]} 35. Nf5 {[%clk 0:00:03.4]} 35... Qe6 {[%clk 0:00:18.3]} 36.
Nd4 {[%clk 0:00:03]} 36... Qe3 {[%clk 0:00:17.4]} 37. Nxb5 {[%clk 0:00:01.8]}
37... Qxc5 {[%clk 0:00:15.5]} 38. bxc5 {[%clk 0:00:02.7]} 38... axb5 {[%clk
0:00:16.1]} 39. c6 {[%clk 0:00:03.3]} 39... b4 {[%clk 0:00:16.1]} 40. Kg1 {[%clk
0:00:03.8]} 40... b3 {[%clk 0:00:16]} 41. c7 {[%clk 0:00:02.1]} 41... Rc8 {[%clk
0:00:15.8]} 42. Kf2 {[%clk 0:00:02.7]} 42... b2 {[%clk 0:00:16.3]} 43. Rb1
{[%clk 0:00:03.2]} 43... Rxc7 {[%clk 0:00:16.7]} 44. Rxb2 {[%clk 0:00:04.1]}
44... Kg8 {[%clk 0:00:17.2]} 45. h4 {[%clk 0:00:04.5]} 45... h5 {[%clk
0:00:16.5]} 46. Kg3 {[%clk 0:00:05.4]} 46... g6 {[%clk 0:00:16.9]} 47. Rb8+
{[%clk 0:00:05.6]} 47... Kg7 {[%clk 0:00:17.1]} 48. Rb5 {[%clk 0:00:06.5]} 48...
Rc4 {[%clk 0:00:17.1]} 49. Rd5 {[%clk 0:00:05.7]} 49... Ra4 {[%clk 0:00:17.2]}
50. Rd2 {[%clk 0:00:06.3]} 50... Kh6 {[%clk 0:00:16.6]} 51. Rb2 {[%clk
0:00:06.8]} 51... Rd4 {[%clk 0:00:16.2]} 52. Rb7 {[%clk 0:00:07.3]} 52... Kg7
{[%clk 0:00:16.5]} 53. Kh3 {[%clk 0:00:07.2]} 53... Rd2 {[%clk 0:00:16.3]} 54.
Rb3 {[%clk 0:00:07.6]} 54... Rd4 {[%clk 0:00:16.5]} 55. Kg3 {[%clk 0:00:07.9]}
55... Ra4 {[%clk 0:00:16.5]} 56. Rb2 {[%clk 0:00:08]} 56... Rc4 {[%clk
0:00:16.2]} 57. Kh3 {[%clk 0:00:08.5]} 57... Rd4 {[%clk 0:00:16.3]} 58. g4
{[%clk 0:00:08.9]} 58... Rd3 {[%clk 0:00:14.4]} 59. Kg2 {[%clk 0:00:06.6]} 59...
Rd4 {[%clk 0:00:10.4]} 60. Kg3 {[%clk 0:00:05.2]} 60... Ra4 {[%clk 0:00:08.7]}
61. gxh5 {[%clk 0:00:05.3]} 61... gxh5 {[%clk 0:00:09.6]} 62. Rb5 {[%clk
0:00:05.9]} 62... Kg6 {[%clk 0:00:09.4]} 63. Rg5+ {[%clk 0:00:06.3]} 63... Kh6
{[%clk 0:00:09.4]} 64. Rf5 {[%clk 0:00:06.7]} 64... Kg6 {[%clk 0:00:09.4]} 65.
Rg5+ {[%clk 0:00:07.1]} 65... Kh6 {[%clk 0:00:10]} 66. Rg8 {[%clk 0:00:08]}
66... Rb4 {[%clk 0:00:08.6]} 67. Kh3 {[%clk 0:00:06.1]} 67... Ra4 {[%clk
0:00:08]} 68. Rg5 {[%clk 0:00:06.1]} 68... Rf4 {[%clk 0:00:07]} 69. Kg3 {[%clk
0:00:04.7]} 69... Ra4 {[%clk 0:00:07.6]} 1/2-1/2